[Event "RUS-ch Men Blitz 2019"]
[Site "Sochi"]
[Date "2019.10.17"]
[Round "7.24"]
[White "Sysolyatin, Evgeny"]
[Black "Belyakov, Bogdan"]
[Result "0-1"]
[ECO "C65"]
[WhiteElo "2271"]
[BlackElo "2495"]
[Annotator "ChessBase"]
[PlyCount "56"]
[EventDate "2019.10.17"]
[EventType "swiss"]
[EventCountry "RUS"]
[SourceTitle "playchess.com"]
[Source "ChessBase"]
[SourceQuality "1"]
[TimeControl "180+2"]

1. e4 {[%emt 0:00:00]} e5 {[%emt 0:00:00]} 2. Nf3 {[%emt 0:00:00]} Nc6 {[%emt 0:00:00]} 3. Bb5 {[%emt 0:00:01]} Nf6 {[%emt 0:00:01]} 4. d3 {[%emt 0:00:07]} Bc5 {[%emt 0:00:01]} 5. O-O {[%emt 0:00:03]} d6 {[%emt 0:00:01]} 6. h3 {[%emt 0:00:10]} O-O {[%emt 0:00:03]} 7. c3 {[%emt 0:00:01]} a6 {[%emt 0:00:01]} 8. Ba4 {[%emt 0:00:07]} Ba7 {[%emt 0:00:02]} 9. Re1 {[%emt 0:00:07]} Ne7 {[%emt 0:00:01]} 10. d4 {[%emt 0:00:19]} Ng6 {[%emt 0:00:04]} 11. Nbd2 {[%emt 0:00:11]} Nh5 {[%emt 0:00:28]} 12. Nf1 {[%emt 0:00:14]} Nhf4 {[%emt 0:00:07]} 13. Ng3 {[%emt 0:00:10]} Qf6 {[%emt 0:00:02]} 14. Bc2 {[%emt 0:00:13]} h6 {[%emt 0:00:06]} 15. Be3 {[%emt 0:00:04]} c5 {[%emt 0:00:05]} 16. dxe5 {[%emt 0:00:13]} dxe5 {[%emt 0:00:02]} 17. Nf5 {[%emt 0:00:47]} Rd8 {[%emt 0:00:02]} 18. Qc1 {[%emt 0:00:27]} Be6 {[%emt 0:00:02]} 19. Kh2 {[%emt 0:00:13]} Nd3 {[%emt 0:00:05]} 20. Bxd3 {[%emt 0:00:02]} Rxd3 {[%emt 0:00:02]} 21. Ng3 {[%emt 0:00:05]} Rad8 {[%emt 0:00:08]} 22. Nh5 {[%emt 0:00:02]} Qe7 {[%emt 0:00:05]} 23. Bxh6 {[%emt 0:00:02]} Rxf3 {[%emt 0:00:12]} 24. gxf3 {[%emt 0:00:02]} Qh4 {[%emt 0:00:02]} 25. Nxg7 {[%emt 0:00:02]} Qxf2+ {[%emt 0:00:08]} 26. Kh1 {[%emt 0:00:03]} Qxf3+ {[%emt 0:00:06]} 27. Kg1 {[%emt 0:00:01]} c4+ {[%emt 0:00:07]} 28. Be3 {[%emt 0:00:02]} Bxh3 {[%emt 0:00:04]} 0-1

[Event "RUS-ch Men Blitz 2019"]
[Site "Sochi"]
[Date "2019.10.17"]
[Round "7.26"]
[White "Gogolev, Artem"]
[Black "Utnasunov, Alexander"]
[Result "0-1"]
[ECO "D11"]
[WhiteElo "2339"]
[BlackElo "2442"]
[Annotator "NA"]
[PlyCount "40"]
[EventDate "2019.10.17"]
[EventType "swiss"]
[EventCountry "RUS"]
[SourceTitle "playchess.com"]
[Source "ChessBase"]
[SourceQuality "1"]
[TimeControl "180+2"]

1. d4 {[%emt 0:00:00]} d5 {[%emt 0:00:00]} 2. c4 {[%emt 0:00:02]} c6 {[%emt 0:00:02]} 3. Nf3 {[%emt 0:00:02]} Nf6 {[%emt 0:00:02]} 4. e3 {[%emt 0:00:02]} e6 {[%emt 0:00:02]} 5. b3 {[%emt 0:00:10]} Nbd7 {[%emt 0:00:12]} 6. Be2 {[%emt 0:00:10]} Bb4+ {[%emt 0:00:05]} 7. Nbd2 {[%emt 0:00:06]} Ne4 {[%emt 0:00:18]} 8. Qc2 {[%emt 0:00:29]} f5 {[%emt 0:00:06]} 9. O-O {[%emt 0:00:04]} Qf6 {[%emt 0:00:10]} 10. Bb2 {[%emt 0:00:16]} Bd6 {[%emt 0:00:01]} 11. a4 {[%emt 0:00:31]} Qh6 {[%emt 0:00:17]} 12. Ba3 {[%emt 0:00:07]} Bc7 {[%emt 0:00:01]} 13. cxd5 {[%emt 0:00:27]} exd5 {[%emt 0:00:02]} 14. b4 {[%emt 0:00:02]} O-O {[%emt 0:00:13]} 15. b5 {[%emt 0:00:09]} Rf6 {[%emt 0:00:01]} 16. Bb2 {[%emt 0:00:14]} Rg6 {[%emt 0:00:32]} 17. Ne5 {[%emt 0:00:15]} Qh3 {[%emt 0:00:17]} 18. g3 {[%emt 0:00:21]} Nxe5 {[%emt 0:00:11]} 19. dxe5 {[%emt 0:00:02]} Nxd2 {[%emt 0:00:02]} 20. Qxd2 Rh6 0-1

[Event "RUS-ch Men Blitz 2019"]
[Site "Sochi"]
[Date "2019.10.17"]
[Round "7.27"]
[White "Chekletsov, Ilya"]
[Black "Faizrakhmanov, Ramil"]
[Result "1-0"]
[ECO "E04"]
[WhiteElo "2377"]
[BlackElo "2434"]
[Annotator "RC"]
[PlyCount "91"]
[EventDate "2019.10.17"]
[EventType "swiss"]
[EventCountry "RUS"]
[SourceTitle "playchess.com"]
[Source "ChessBase"]
[SourceQuality "1"]
[TimeControl "180+2"]

1. d4 {[%emt 0:00:00]} Nf6 {[%emt 0:00:00]} 2. c4 {[%emt 0:00:02]} e6 {[%emt 0:00:00]} 3. g3 {[%emt 0:00:01]} d5 {[%emt 0:00:01]} 4. Bg2 {[%emt 0:00:00]} dxc4 {[%emt 0:00:01]} 5. Nf3 {[%emt 0:00:02]} Bb4+ {[%emt 0:00:02]} 6. Nc3 {[%emt 0:00:10]} Nc6 {[%emt 0:00:01]} 7. O-O {[%emt 0:00:02]} O-O {[%emt 0:00:02]} 8. Bg5 {[%emt 0:00:03]} h6 {[%emt 0:00:07]} 9. Bxf6 {[%emt 0:00:14]} Qxf6 {[%emt 0:00:02]} 10. Rc1 {[%emt 0:00:01]} Rd8 {[%emt 0:00:14]} 11. Ne4 {[%emt 0:00:27]} Qe7 {[%emt 0:00:08]} 12. Rxc4 {[%emt 0:00:03]} e5 {[%emt 0:00:12]} 13. a3 {[%emt 0:00:11]} Ba5 {[%emt 0:00:09]} 14. b4 {[%emt 0:00:18]} Bb6 {[%emt 0:00:04]} 15. d5 {[%emt 0:00:01]} Nd4 {[%emt 0:00:22]} 16. Nxd4 {[%emt 0:00:39]} exd4 {[%emt 0:00:04]} 17. Nc5 {[%emt 0:00:01]} a5 {[%emt 0:00:02]} 18. Rxd4 {[%emt 0:00:07]} axb4 {[%emt 0:00:04]} 19. axb4 {[%emt 0:00:01]} Bxc5 {[%emt 0:00:12]} 20. bxc5 {[%emt 0:00:01]} Qxc5 {[%emt 0:00:01]} 21. Qd2 {[%emt 0:00:01]} Ra3 {[%emt 0:00:12]} 22. Rc1 {[%emt 0:00:03]} Qb6 {[%emt 0:00:09]} 23. Qb4 {[%emt 0:00:08]} Qa6 {[%emt 0:00:17]} 24. e3 {[%emt 0:00:15]} Ra2 {[%emt 0:00:09]} 25. Qc4 {[%emt 0:00:02]} Ra1 {[%emt 0:00:17]} 26. Bf1 {[%emt 0:00:13]} Rxc1 {[%emt 0:00:09]} 27. Qxc1 {[%emt 0:00:01]} Qa5 {[%emt 0:00:00]} 28. Bg2 {[%emt 0:00:03]} Bf5 {[%emt 0:00:13]} 29. g4 {[%emt 0:00:03]} Bg6 {[%emt 0:00:03]} 30. h4 {[%emt 0:00:01]} h5 {[%emt 0:00:21]} 31. gxh5 {[%emt 0:00:14]} Bxh5 {[%emt 0:00:02]} 32. Rc4 {[%emt 0:00:01]} c6 {[%emt 0:00:02]} 33. Rc5 {[%emt 0:00:07]} Qb6 {[%emt 0:00:09]} 34. e4 {[%emt 0:00:01]} cxd5 {[%emt 0:00:04]} 35. exd5 {[%emt 0:00:11]} Qg6 {[%emt 0:00:09]} 36. Qg5 {[%emt 0:00:08]} Qxg5 {[%emt 0:00:03]} 37. hxg5 {[%emt 0:00:01]} Bg4 {[%emt 0:00:01]} 38. Rb5 {[%emt 0:00:06]} Rd7 {[%emt 0:00:01]} 39. Be4 {[%emt 0:00:03]} g6 {[%emt 0:00:02]} 40. Kg2 {[%emt 0:00:02]} Kg7 {[%emt 0:00:04]} 41. Kg3 {[%emt 0:00:02]} Be2 {[%emt 0:00:03]} 42. Rb6 {[%emt 0:00:01]} Bc4 {[%emt 0:00:02]} 43. d6 {[%emt 0:00:01]} Ba6 {[%emt 0:00:01]} 44. f4 {[%emt 0:00:05]} f6 {[%emt 0:00:02]} 45. Kf3 {[%emt 0:00:01]} fxg5 {[%emt 0:00:07]} 46. fxg5 1-0

[Event "RUS-ch Men Blitz 2019"]
[Site "Sochi"]
[Date "2019.10.17"]
[Round "7.28"]
[White "Yeritsyan, Aram"]
[Black "Gubsky, Egor"]
[Result "0-1"]
[ECO "B30"]
[WhiteElo "2271"]
[BlackElo "2339"]
[Annotator "NA"]
[PlyCount "58"]
[EventDate "2019.10.17"]
[EventType "swiss"]
[EventCountry "RUS"]
[SourceTitle "playchess.com"]
[Source "ChessBase"]
[SourceQuality "1"]
[TimeControl "180+2"]

1. e4 {[%emt 0:00:00]} c5 {[%emt 0:00:00]} 2. Nf3 {[%emt 0:00:00]} Nc6 {[%emt 0:00:00]} 3. Nc3 {[%emt 0:00:02]} e6 {[%emt 0:00:01]} 4. Bb5 {[%emt 0:00:04]} Nge7 {[%emt 0:00:02]} 5. O-O {[%emt 0:00:05]} a6 {[%emt 0:00:01]} 6. Bxc6 {[%emt 0:00:02]} Nxc6 {[%emt 0:00:02]} 7. d4 {[%emt 0:00:01]} cxd4 {[%emt 0:00:02]} 8. Nxd4 {[%emt 0:00:00]} Be7 {[%emt 0:00:02]} 9. Be3 {[%emt 0:00:04]} O-O {[%emt 0:00:02]} 10. Qe2 {[%emt 0:00:02]} Qc7 {[%emt 0:00:02]} 11. Rad1 {[%emt 0:00:01]} b5 {[%emt 0:00:01]} 12. a3 {[%emt 0:00:05]} Bb7 {[%emt 0:00:02]} 13. f4 {[%emt 0:00:05]} d6 {[%emt 0:00:01]} 14. Kh1 {[%emt 0:00:19]} Na5 {[%emt 0:00:07]} 15. f5 {[%emt 0:00:07]} e5 {[%emt 0:00:05]} 16. Nb3 {[%emt 0:00:22]} Nc4 {[%emt 0:00:19]} 17. Bc1 {[%emt 0:00:20]} Bf6 {[%emt 0:00:10]} 18. Nd5 {[%emt 0:00:30]} Bxd5 {[%emt 0:00:03]} 19. exd5 {[%emt 0:00:12]} Qe7 {[%emt 0:00:09]} 20. Qe4 {[%emt 0:00:07]} Kh8 {[%emt 0:00:10]} 21. Rd3 {[%emt 0:00:09]} Bg5 {[%emt 0:00:36]} 22. Bxg5 {[%emt 0:00:06]} Qxg5 {[%emt 0:00:02]} 23. f6 {[%emt 0:00:11]} gxf6 {[%emt 0:00:23]} 24. Rg3 {[%emt 0:00:06]} Qh6 {[%emt 0:00:09]} 25. Rh3 {[%emt 0:00:06]} Qg6 {[%emt 0:00:02]} 26. Rf5 {[%emt 0:00:21]} Rg8 {[%emt 0:00:11]} 27. Qf3 {[%emt 0:00:07]} e4 {[%emt 0:00:10]} 28. Qxe4 {[%emt 0:00:19]} Rae8 {[%emt 0:00:02]} 29. Qd3 {[%emt 0:00:01]} Qxg2# {[%emt 0:00:03] Qd1} 0-1

[Event "RUS-ch Men Blitz 2019"]
[Site "Sochi"]
[Date "2019.10.17"]
[Round "7.29"]
[White "Korchmar, Vasiliy"]
[Black "Popov, Maksim"]
[Result "1-0"]
[ECO "E04"]
[WhiteElo "2432"]
[BlackElo "1935"]
[Annotator "NA RC"]
[PlyCount "95"]
[EventDate "2019.10.17"]
[EventType "swiss"]
[EventCountry "RUS"]
[SourceTitle "playchess.com"]
[Source "ChessBase"]
[SourceQuality "1"]
[TimeControl "180+2"]

1. d4 {[%emt 0:00:00]} Nf6 {[%emt 0:00:00]} 2. c4 e6 3. g3 {[%emt 0:00:00]} d5 {[%emt 0:00:00]} 4. Bg2 {[%emt 0:00:01]} dxc4 {[%emt 0:00:01]} 5. Nf3 {[%emt 0:00:01]} a6 {[%emt 0:00:00]} 6. O-O {[%emt 0:00:04]} Nc6 {[%emt 0:00:01]} 7. e3 {[%emt 0:00:01]} Rb8 {[%emt 0:00:02]} 8. Nfd2 {[%emt 0:00:13]} e5 {[%emt 0:00:07]} 9. Bxc6+ {[%emt 0:00:02]} bxc6 {[%emt 0:00:00]} 10. dxe5 {[%emt 0:00:01]} Ng4 {[%emt 0:00:01]} 11. Nxc4 {[%emt 0:00:01]} Be6 {[%emt 0:00:00]} 12. Nbd2 {[%emt 0:00:04]} Bb4 {[%emt 0:00:03]} 13. b3 {[%emt 0:00:07]} h5 {[%emt 0:00:02]} 14. Qe2 {[%emt 0:00:54]} h4 {[%emt 0:00:09]} 15. f3 {[%emt 0:00:09]} Bxd2 {[%emt 0:01:09]} 16. Qxd2 {[%emt 0:00:38]} hxg3 {[%emt 0:00:22]} 17. Qxd8+ {[%emt 0:00:05]} Rxd8 {[%emt 0:00:00]} 18. hxg3 {[%emt 0:00:17]} Nh2 {[%emt 0:00:11]} 19. Rf2 {[%emt 0:00:07]} Rd1+ {[%emt 0:00:01]} 20. Kg2 {[%emt 0:00:03]} Bh3+ {[%emt 0:00:59]} 21. Kxh2 {[%emt 0:00:01]} Bf1+ {[%emt 0:00:01]} 22. Kg1 {[%emt 0:00:01]} Bxc4+ {[%emt 0:00:00]} 23. Kg2 {[%emt 0:00:03]} Rhh1 {[%emt 0:00:05]} 24. Bb2 {[%emt 0:00:03]} Rxa1 {[%emt 0:00:05]} 25. Bxa1 {[%emt 0:00:02]} Rxa1 {[%emt 0:00:05]} 26. bxc4 {[%emt 0:00:01]} Rc1 {[%emt 0:00:01]} 27. f4 {[%emt 0:00:06]} Rxc4 {[%emt 0:00:01]} 28. Kf3 {[%emt 0:00:00]} Ke7 {[%emt 0:00:14]} 29. g4 {[%emt 0:00:02]} Ke6 {[%emt 0:00:03]} 30. Rd2 {[%emt 0:00:01]} Rc3 {[%emt 0:00:07]} 31. Ke4 {[%emt 0:00:01]} g6 {[%emt 0:00:01]} 32. f5+ {[%emt 0:00:01]} gxf5+ 33. gxf5+ {[%emt 0:00:00]} Ke7 {[%emt 0:00:01]} 34. Kd4 {[%emt 0:00:18]} Ra3 {[%emt 0:00:01]} 35. Rc2 {[%emt 0:00:00]} Kd7 {[%emt 0:00:04]} 36. Ke4 {[%emt 0:00:15]} Ra4+ {[%emt 0:00:03]} 37. Kf3 {[%emt 0:00:00]} Ra5 {[%emt 0:00:03]} 38. Kf4 {[%emt 0:00:01]} Rd5 {[%emt 0:00:07]} 39. e4 {[%emt 0:00:04]} Rd1 {[%emt 0:00:01]} 40. Kg5 {[%emt 0:00:01]} Re1 {[%emt 0:00:02]} 41. Rc4 {[%emt 0:00:15]} c5 {[%emt 0:00:01]} 42. Kf6 {[%emt 0:00:02]} Ke8 {[%emt 0:00:05]} 43. Rxc5 {[%emt 0:00:04]} Rxe4 {[%emt 0:00:01]} 44. Rxc7 {[%emt 0:00:01]} Ra4 {[%emt 0:00:02]} 45. Re7+ {[%emt 0:00:04]} Kd8 {[%emt 0:00:01]} 46. Rxf7 {[%emt 0:00:03]} Rxa2 {[%emt 0:00:01]} 47. e6 {[%emt 0:00:02]} Re2 {[%emt 0:00:06]} 48. Ra7 {[%emt 0:00:01]} 1-0

[Event "RUS-ch Men Blitz 2019"]
[Site "Sochi"]
[Date "2019.10.17"]
[Round "8.1"]
[White "Tsydypov, Zhamsaran"]
[Black "Drygalov, Andrey"]
[Result "0-1"]
[ECO "A22"]
[WhiteElo "2553"]
[BlackElo "2484"]
[Annotator "RC"]
[PlyCount "136"]
[EventDate "2019.10.17"]
[EventType "swiss"]
[EventCountry "RUS"]
[SourceTitle "playchess.com"]
[Source "ChessBase"]
[SourceQuality "1"]
[TimeControl "180+2"]

1. c4 {[%emt 0:00:00]} Nf6 {[%emt 0:00:00]} 2. Nc3 {[%emt 0:00:02]} e5 {[%emt 0:00:00]} 3. g3 {[%emt 0:00:01]} d5 {[%emt 0:00:01]} 4. cxd5 {[%emt 0:00:01]} Nxd5 {[%emt 0:00:02]} 5. Bg2 {[%emt 0:00:01]} Nb6 {[%emt 0:00:03]} 6. e3 {[%emt 0:00:04]} Bd6 {[%emt 0:00:08]} 7. Nge2 {[%emt 0:00:02]} O-O {[%emt 0:00:01]} 8. O-O {[%emt 0:00:02]} Nc6 {[%emt 0:00:14]} 9. f4 {[%emt 0:00:05]} exf4 {[%emt 0:00:09]} 10. Nxf4 {[%emt 0:00:04]} Ne5 {[%emt 0:00:01]} 11. d4 {[%emt 0:00:02]} Ng6 {[%emt 0:00:01]} 12. Nd3 {[%emt 0:00:18]} c6 {[%emt 0:00:07]} 13. e4 {[%emt 0:00:03]} Be7 {[%emt 0:00:12]} 14. Be3 {[%emt 0:00:05]} f5 {[%emt 0:00:06]} 15. Qb3+ {[%emt 0:00:16]} Kh8 {[%emt 0:00:01]} 16. e5 {[%emt 0:00:01]} Bg5 {[%emt 0:00:20]} 17. Bxg5 {[%emt 0:00:08]} Qxg5 {[%emt 0:00:02]} 18. Nf4 {[%emt 0:00:01]} Nxf4 {[%emt 0:00:06]} 19. gxf4 {[%emt 0:00:02]} Qg6 {[%emt 0:00:00]} 20. Kh1 {[%emt 0:00:37]} Be6 {[%emt 0:00:02]} 21. Qb4 {[%emt 0:00:01]} Rfd8 {[%emt 0:00:03]} 22. Rad1 {[%emt 0:00:06]} Qf7 {[%emt 0:00:12]} 23. Qa3 {[%emt 0:00:15]} Nc4 {[%emt 0:00:04]} 24. Qb4 {[%emt 0:00:02]} Ne3 {[%emt 0:00:02]} 25. Bf3 {[%emt 0:00:03]} Nxf1 {[%emt 0:00:06]} 26. Rxf1 {[%emt 0:00:01]} Rd7 {[%emt 0:00:03]} 27. Rd1 {[%emt 0:00:04]} Rad8 {[%emt 0:00:02]} 28. Qc5 {[%emt 0:00:03]} b6 {[%emt 0:00:21]} 29. Qxc6 {[%emt 0:00:18]} Rxd4 {[%emt 0:00:04]} 30. Rxd4 {[%emt 0:00:34]} Rxd4 {[%emt 0:00:01]} 31. Nb5 {[%emt 0:00:01]} Rxf4 {[%emt 0:00:08]} 32. Nd6 {[%emt 0:00:01]} Qg8 {[%emt 0:00:07]} 33. Kg1 {[%emt 0:00:02]} Bxa2 {[%emt 0:00:33]} 34. Bg2 {[%emt 0:00:19]} Be6 {[%emt 0:00:02]} 35. Qb7 {[%emt 0:00:06]} Rb4 {[%emt 0:00:05]} 36. Qxa7 {[%emt 0:00:05]} Rxb2 {[%emt 0:00:01]} 37. h4 {[%emt 0:00:06]} h6 {[%emt 0:00:08]} 38. Qe7 {[%emt 0:00:04]} Re2 {[%emt 0:00:12]} 39. Qc7 {[%emt 0:00:04]} Rxe5 {[%emt 0:00:03]} 40. Nf7+ {[%emt 0:00:01]} Qxf7 {[%emt 0:00:02]} 41. Qxe5 {[%emt 0:00:01]} Kh7 {[%emt 0:00:04]} 42. Bf1 {[%emt 0:00:04]} Qf6 {[%emt 0:00:04]} 43. Qf4 {[%emt 0:00:04]} Qg6+ {[%emt 0:00:05]} 44. Bg2 {[%emt 0:00:04]} Qg4 {[%emt 0:00:02]} 45. Qe5 {[%emt 0:00:01]} Bf7 {[%emt 0:00:02]} 46. Kf1 {[%emt 0:00:03]} Bc4+ 47. Kg1 Bf7 {[%emt 0:00:05]} 48. Kf1 {[%emt 0:00:02]} Bg6 {[%emt 0:00:05]} 49. Qb5 {[%emt 0:00:04]} Qxh4 {[%emt 0:00:02]} 50. Qxb6 {[%emt 0:00:01]} Qf4+ {[%emt 0:00:02]} 51. Kg1 {[%emt 0:00:01]} Qe5 {[%emt 0:00:02]} 52. Qb4 {[%emt 0:00:02]} f4 {[%emt 0:00:01]} 53. Kh1 {[%emt 0:00:05]} Qe3 {[%emt 0:00:04]} 54. Qb7 {[%emt 0:00:01]} Qe1+ {[%emt 0:00:01]} 55. Kh2 {[%emt 0:00:01]} Qg3+ 56. Kh1 h5 {[%emt 0:00:06]} 57. Qd5 {[%emt 0:00:02]} h4 {[%emt 0:00:02]} 58. Qe6 {[%emt 0:00:03]} f3 {[%emt 0:00:04]} 59. Bf1 {[%emt 0:00:02]} f2 {[%emt 0:00:03]} 60. Bg2 {[%emt 0:00:01]} Qf4 {[%emt 0:00:00]} 61. Qe2 {[%emt 0:00:02]} Kh6 {[%emt 0:00:04]} 62. Qf1 {[%emt 0:00:02]} Be4 {[%emt 0:00:01]} 63. Qa6+ {[%emt 0:00:03]} g6 {[%emt 0:00:01]} 64. Qf1 {[%emt 0:00:02]} Bxg2+ {[%emt 0:00:01]} 65. Kxg2 {[%emt 0:00:00]} Qg3+ 66. Kh1 Qf3+ {[%emt 0:00:03]} 67. Kh2 {[%emt 0:00:02]} Qg3+ {[%emt 0:00:01]} 68. Kh1 {[%emt 0:00:00]} Qg1+ {[%emt 0:00:00]} 0-1

[Event "RUS-ch Men Blitz 2019"]
[Site "Sochi"]
[Date "2019.10.17"]
[Round "8.6"]
[White "Lysyj, Igor"]
[Black "Triapishko, Alexandr"]
[Result "1/2-1/2"]
[ECO "E04"]
[WhiteElo "2596"]
[BlackElo "2514"]
[Annotator "ChessBase"]
[PlyCount "119"]
[EventDate "2019.10.17"]
[EventType "swiss"]
[EventCountry "RUS"]
[SourceTitle "playchess.com"]
[Source "ChessBase"]
[SourceQuality "1"]
[TimeControl "180+2"]

1. d4 {[%emt 0:00:00]} Nf6 {[%emt 0:00:00]} 2. c4 {[%emt 0:00:00]} e6 {[%emt 0:00:00]} 3. Nf3 {[%emt 0:00:01]} d5 {[%emt 0:00:01]} 4. g3 {[%emt 0:00:01]} dxc4 {[%emt 0:00:02]} 5. Bg2 {[%emt 0:00:01]} Bb4+ {[%emt 0:00:01]} 6. Bd2 {[%emt 0:00:01]} c5 {[%emt 0:00:01]} 7. Bxb4 {[%emt 0:00:10]} cxb4 {[%emt 0:00:01]} 8. Ne5 {[%emt 0:00:09]} O-O {[%emt 0:00:03]} 9. O-O {[%emt 0:00:20]} Nc6 {[%emt 0:00:15]} 10. Bxc6 {[%emt 0:00:04]} bxc6 {[%emt 0:00:01]} 11. a3 {[%emt 0:00:01]} bxa3 {[%emt 0:00:39]} 12. Nxa3 {[%emt 0:00:05]} Qd5 {[%emt 0:00:21]} 13. Naxc4 {[%emt 0:00:12]} c5 {[%emt 0:00:02]} 14. dxc5 {[%emt 0:00:14]} Qxc5 {[%emt 0:00:02]} 15. Qd6 {[%emt 0:00:02]} Ne4 {[%emt 0:00:50]} 16. Qxc5 Nxc5 {[%emt 0:00:01]} 17. b4 {[%emt 0:00:39]} Nb3 {[%emt 0:00:36]} 18. Ra3 {[%emt 0:00:21]} Nd4 {[%emt 0:00:03]} 19. Rd1 {[%emt 0:00:02]} Nb5 {[%emt 0:00:11]} 20. Ra5 {[%emt 0:00:13]} Nc3 {[%emt 0:00:17]} 21. Rd3 {[%emt 0:00:11]} Nd5 {[%emt 0:00:04]} 22. b5 {[%emt 0:00:14]} f6 {[%emt 0:00:05]} 23. Nc6 {[%emt 0:00:06]} Bd7 {[%emt 0:00:06]} 24. e4 {[%emt 0:00:03]} Bxc6 {[%emt 0:00:02]} 25. bxc6 {[%emt 0:00:02]} Nb4 {[%emt 0:00:02]} 26. Rd6 {[%emt 0:00:03]} Rac8 {[%emt 0:00:02]} 27. Rc5 {[%emt 0:00:13]} Na6 {[%emt 0:00:02]} 28. Rb5 {[%emt 0:00:02]} Nb8 {[%emt 0:00:02]} 29. Na5 {[%emt 0:00:04]} Na6 {[%emt 0:00:01]} 30. Rd7 {[%emt 0:00:03]} Rf7 {[%emt 0:00:02]} 31. Rbb7 {[%emt 0:00:02]} Rcf8 {[%emt 0:00:04]} 32. Rxa7 {[%emt 0:00:04]} Rxd7 33. Rxd7 {[%emt 0:00:03]} Nb8 {[%emt 0:00:03]} 34. Re7 {[%emt 0:00:02]} Rc8 {[%emt 0:00:02]} 35. Rxe6 {[%emt 0:00:03]} Kf7 {[%emt 0:00:00]} 36. Rd6 Ke7 37. Rd1 {[%emt 0:00:04]} Nxc6 {[%emt 0:00:02]} 38. Rc1 {[%emt 0:00:01]} Na7 {[%emt 0:00:02]} 39. Rxc8 {[%emt 0:00:01]} Nxc8 {[%emt 0:00:00]} 40. f3 {[%emt 0:00:02]} Kd6 {[%emt 0:00:04]} 41. Nc4+ {[%emt 0:00:02]} Kc5 {[%emt 0:00:01]} 42. Ne3 {[%emt 0:00:01]} Nd6 {[%emt 0:00:05]} 43. Kf2 {[%emt 0:00:02]} Kd4 {[%emt 0:00:04]} 44. g4 {[%emt 0:00:03]} g6 {[%emt 0:00:02]} 45. h4 {[%emt 0:00:03]} h5 {[%emt 0:00:02]} 46. gxh5 {[%emt 0:00:04]} gxh5 {[%emt 0:00:00]} 47. Nc2+ {[%emt 0:00:03]} Ke5 {[%emt 0:00:03]} 48. Ne3 {[%emt 0:00:03]} Kd4 {[%emt 0:00:02]} 49. Nc2+ {[%emt 0:00:06]} Ke5 {[%emt 0:00:01]} 50. Nb4 {[%emt 0:00:02]} f5 {[%emt 0:00:03]} 51. Nc6+ {[%emt 0:00:01]} Kf4 {[%emt 0:00:03]} 52. e5 {[%emt 0:00:02]} Nc8 {[%emt 0:00:03]} 53. e6 {[%emt 0:00:01]} Nd6 {[%emt 0:00:01]} 54. e7 {[%emt 0:00:02]} Ne8 {[%emt 0:00:02]} 55. Ke2 {[%emt 0:00:04]} Nf6 {[%emt 0:00:02]} 56. Nd4 {[%emt 0:00:04]} Ke5 {[%emt 0:00:02]} 57. Nb5 {[%emt 0:00:02]} Ke6 {[%emt 0:00:01]} 58. Ke3 {[%emt 0:00:01]} Nd5+ {[%emt 0:00:01]} 59. Kd4 {[%emt 0:00:02]} Nxe7 {[%emt 0:00:01]} 60. Ke3 {[%emt 0:00:03]} 1/2-1/2

[Event "RUS-ch Men Blitz 2019"]
[Site "Sochi"]
[Date "2019.10.17"]
[Round "8.10"]
[White "Ulybin, Mikhail"]
[Black "Timofeev, Artyom"]
[Result "1/2-1/2"]
[ECO "D85"]
[WhiteElo "2455"]
[BlackElo "2595"]
[Annotator "ChessBase"]
[PlyCount "137"]
[EventDate "2019.10.17"]
[EventType "swiss"]
[EventCountry "RUS"]
[SourceTitle "playchess.com"]
[Source "ChessBase"]
[SourceQuality "1"]
[TimeControl "180+2"]

1. d4 {[%emt 0:00:02]} Nf6 {[%emt 0:00:00]} 2. c4 {[%emt 0:00:03]} g6 {[%emt 0:00:00]} 3. Nc3 {[%emt 0:00:03]} d5 {[%emt 0:00:01]} 4. cxd5 {[%emt 0:00:07]} Nxd5 {[%emt 0:00:02]} 5. Bd2 {[%emt 0:00:03]} Bg7 {[%emt 0:00:04]} 6. e4 {[%emt 0:00:04]} Nf6 {[%emt 0:00:02]} 7. Bg5 {[%emt 0:00:23]} O-O {[%emt 0:00:06]} 8. Qd2 {[%emt 0:00:10]} c5 {[%emt 0:00:06]} 9. d5 {[%emt 0:00:09]} a6 {[%emt 0:00:14]} 10. a4 {[%emt 0:00:28]} Nbd7 {[%emt 0:00:04]} 11. Nf3 {[%emt 0:00:11]} Rb8 {[%emt 0:00:01]} 12. a5 {[%emt 0:01:06]} b5 {[%emt 0:00:04]} 13. axb6 {[%emt 0:00:02]} Qxb6 {[%emt 0:00:06]} 14. Ra2 {[%emt 0:00:06]} Qb3 {[%emt 0:00:18]} 15. Bd3 {[%emt 0:00:04]} e6 {[%emt 0:00:23]} 16. Bc2 {[%emt 0:00:16]} Qc4 {[%emt 0:00:01]} 17. Bd3 {[%emt 0:00:03]} Qb4 {[%emt 0:00:01]} 18. O-O {[%emt 0:00:05]} exd5 {[%emt 0:00:02]} 19. exd5 {[%emt 0:00:03]} Nb6 {[%emt 0:00:05]} 20. d6 {[%emt 0:00:05]} Be6 {[%emt 0:00:01]} 21. Rxa6 {[%emt 0:00:02]} Nc4 {[%emt 0:00:01]} 22. Bxc4 {[%emt 0:00:04]} Bxc4 {[%emt 0:00:01]} 23. Ra4 {[%emt 0:00:01]} Bxf1 {[%emt 0:00:02]} 24. Rxb4 {[%emt 0:00:02]} cxb4 {[%emt 0:00:00]} 25. Kxf1 {[%emt 0:00:02]} bxc3 {[%emt 0:00:01]} 26. Qxc3 {[%emt 0:00:02]} Ne4 {[%emt 0:00:01]} 27. Qe3 {[%emt 0:00:01]} Nxg5 {[%emt 0:00:02]} 28. Nxg5 {[%emt 0:00:01]} Rxb2 {[%emt 0:00:02]} 29. g3 {[%emt 0:00:01]} Bh6 {[%emt 0:00:11]} 30. h4 {[%emt 0:00:04]} Rb1+ {[%emt 0:00:31]} 31. Kg2 {[%emt 0:00:02]} Bxg5 {[%emt 0:00:01]} 32. hxg5 {[%emt 0:00:01]} Rd1 {[%emt 0:00:01]} 33. Qe7 {[%emt 0:00:02]} Rd3 {[%emt 0:00:28]} 34. d7 {[%emt 0:00:02]} Kg7 {[%emt 0:00:03]} 35. Qf6+ {[%emt 0:00:03]} Kg8 {[%emt 0:00:01]} 36. Qe7 {[%emt 0:00:01]} Kg7 {[%emt 0:00:01]} 37. Kf1 {[%emt 0:00:01]} Rd2 {[%emt 0:00:01]} 38. Ke1 {[%emt 0:00:02]} Rd5 {[%emt 0:00:07]} 39. Ke2 {[%emt 0:00:01]} Kg8 {[%emt 0:00:03]} 40. Ke3 {[%emt 0:00:02]} Rd1 {[%emt 0:00:01]} 41. Kf4 {[%emt 0:00:02]} Rd2 {[%emt 0:00:04]} 42. f3 {[%emt 0:00:02]} Rd3 {[%emt 0:00:01]} 43. g4 {[%emt 0:00:01]} Rd1 {[%emt 0:00:02]} 44. Kg3 {[%emt 0:00:02]} Rd3 {[%emt 0:00:02]} 45. Kf2 {[%emt 0:00:02]} Rd5 {[%emt 0:00:01]} 46. f4 {[%emt 0:00:02]} Rd4 {[%emt 0:00:03]} 47. Ke3 {[%emt 0:00:01]} Rd1 {[%emt 0:00:01]} 48. Ke2 {[%emt 0:00:01]} Rd5 {[%emt 0:00:01]} 49. Kf3 {[%emt 0:00:03]} Rd1 {[%emt 0:00:01]} 50. Kf2 {[%emt 0:00:02]} Rd5 {[%emt 0:00:02]} 51. Ke2 {[%emt 0:00:04]} Rd4 {[%emt 0:00:02]} 52. f5 {[%emt 0:00:03]} Rd5 {[%emt 0:00:04]} 53. Ke3 {[%emt 0:00:03]} Rd1 {[%emt 0:00:01]} 54. Kf2 {[%emt 0:00:03]} Rd5 {[%emt 0:00:01]} 55. f6 {[%emt 0:00:02]} Rd1 {[%emt 0:00:02]} 56. Ke2 {[%emt 0:00:02]} Rd5 {[%emt 0:00:01]} 57. Ke3 {[%emt 0:00:02]} Rd1 {[%emt 0:00:00]} 58. Kf2 {[%emt 0:00:01]} Rd5 {[%emt 0:00:01]} 59. Qe8 {[%emt 0:00:02]} Rd1 {[%emt 0:00:03]} 60. Ke2 {[%emt 0:00:02]} Rd5 {[%emt 0:00:01]} 61. Qc8 {[%emt 0:00:02]} Rd6 62. Ke3 {[%emt 0:00:03]} Rd1 {[%emt 0:00:09]} 63. Ke4 {[%emt 0:00:02]} Rd2 {[%emt 0:00:01]} 64. Ke5 {[%emt 0:00:02]} Rd1 {[%emt 0:00:01]} 65. Ke4 {[%emt 0:00:04]} Rd2 {[%emt 0:00:01]} 66. Ke3 {[%emt 0:00:02]} Rd1 {[%emt 0:00:01]} 67. Ke2 {[%emt 0:00:02]} Rd5 {[%emt 0:00:00]} 68. Ke3 {[%emt 0:00:01]} Rd1 {[%emt 0:00:01]} 69. Ke4 {[%emt 0:00:02]} 1/2-1/2